Cogmind - Beta 13 @@@ ROGUE MODE // 2024.05.12 @ 20:50:13 // AFD2020/Player2 Player: Minty Result: Core destroyed Performance ------------- Evolutions (3) 1500 Regions Visited (11) 2200 Robots Destroyed (92) 460 Value Destroyed (5482) 5482 Prototype IDs (34) 680 Alien Tech Used (0) 0 Bonus (3886) 3886 TOTAL SCORE: 14208 Bonus ------- High Alert Combat Kills 734 Follower Combat Kills 1890 Entered Garrisons 600 Used RIF Installer 1500 Aligned with FarCom 300 Friendly Fire -1138 Cogmind --------- Core Integrity 0/700 Matter 135/300 Energy 150/150 System Corruption 12% Temperature Cool (0) Movement Treading (240) Ox1 Location -7/Factory Parts ------- > --- POWER (1) -------- Micro Nuclear Core > --- PROPULSION (4) --- Improved Treads > --- UTILITY (5) ------ Medium Storage Unit Relay Coupler [NC] (15) Relay Coupler [Grunt] (20) > --- WEAPON (3) ------- Enhanced Gauss Cannon Remote Datajack > --- INVENTORY (10) --- Surge Thruster Compact Matter Pod (150) Relay Coupler [Swarmer] (35) Relay Coupler [Grunt] (28) Relay Coupler [Brawler] (25) Relay Coupler [Duelist] (29) Relay Coupler [Hunter] (19) Mini Assault Cannon Enhanced Gauss Cannon Peak State ------------ > --- POWER ------------ Micro Nuclear Core > --- PROPULSION ------- Light Treads Light Treads Compact Wheel > --- UTILITY ---------- Improved Heat Sink Medium Storage Unit Hacking Suite Hacking Suite System Shield > --- WEAPON ----------- AWS/Thermal 8R-AWN's Boregun > --- INVENTORY -------- Compact Matter Pod Relay Coupler [NC] Relay Coupler [Grunt] Relay Coupler [Brawler] Relay Coupler [Duelist] Relay Coupler [Hunter] Relay Coupler [Hunter] Improved Field Recycling Unit Remote Datajack [Rating: 49] Favorites ----------- Power Micro Nuclear Core Engine Light Ion Engine Power Core Micro Nuclear Core Propulsion Light Treads Treads Light Treads Leg Aluminum Leg Wheel Compact Wheel Hover Unit Gravmag System Flight Unit Improved Flight Unit Utility Hacking Suite Device Sensor Array Storage Medium Storage Unit Processor Advanced Targeting Computer Hackware Hacking Suite Protection Improved Light Armor Plating Weapon Enhanced Gauss Cannon Energy Gun Plasma Rifle Energy Cannon EM Pulse Cannon Ballistic Gun 8R-AWN's Boregun Ballistic Cannon Enhanced Gauss Cannon Launcher Grenade Launcher Special Weapon Remote Datajack Special Melee Weapon Improved Datajack Build | -11 -10 -10 -10 -9 -8 -8 -8 -8 -7 -7 -7 ------- Run | Yrd Mat Min Exi Min Mat Gar Mat Gar Fac Gar Fac Slots Evolved 6 | . . . . . 4 . . . 2 . . Power . | . . . . . . . . . . . . Propulsion 2 | . . . . . 1 . . . 1 . . Utility 3 | . . . . . 2 . . . 1 . . Weapon 1 | . . . . . 1 . . . . . . Parts Attached 132 | . 4 4 3 2 10 13 23 18 33 16 6 Power 12 | . . 1 . . . 1 . 4 5 1 . Engine 3 | . . 1 . . . . . 1 1 . . Core 9 | . . . . . . 1 . 3 4 1 . Reactor . | . . . . . . . . . . . . Propulsion 26 | . 1 . 2 . 1 2 5 4 8 2 1 Treads 11 | . . . . . . 1 2 . 6 1 1 Leg 1 | . 1 . . . . . . . . . . Wheel 8 | . . . 2 . 1 . 3 . 2 . . Hover 1 | . . . . . . 1 . . . . . Flight 5 | . . . . . . . . 4 . 1 . Utility 33 | . 1 . 1 1 3 3 7 2 6 6 3 Device 5 | . 1 . . 1 . . . . 2 1 . Storage 2 | . . . 1 . . . . . 1 . . Processor 2 | . . . . . 1 . . . 1 . . Hackware 21 | . . . . . . 3 6 2 2 5 3 Protection 3 | . . . . . 2 . 1 . . . . Artifact . | . . . . . . . . . . . . Weapon 61 | . 2 3 . 1 6 7 11 8 14 7 2 Energy Gun 23 | . 1 1 . . . 2 3 4 10 2 . Energy Cannon 1 | . . . . . 1 . . . . . . Ballistic Gun 16 | . . 2 . . 4 3 3 1 2 1 . Ballistic Cannon 9 | . . . . . . . 3 2 . 2 2 Launcher 4 | . 1 . . 1 1 . . 1 . . . Special Weapon 4 | . . . . . . . . . 2 2 . Impact Weapon . | . . . . . . . . . . . . Slashing Weapon . | . . . . . . . . . . . . Piercing Weapon . | . . . . . . . . . . . . Special Melee Weapon 4 | . . . . . . 2 2 . . . . Unidentified Prototypes 5 | . . 1 . . 1 . . . 3 . . Corrupted Parts 1 | . . . . . . . . . 1 . . System Corruption 4 | . . . . . . . . . 4 . . Parts Lost 28 | . . . . . 3 4 3 2 7 6 3 Power 3 | . . . . . 1 . . 1 1 . . Propulsion 14 | . . . . . 1 3 1 . 4 2 3 Utility 4 | . . . . . . 1 1 1 . 1 . Weapon 7 | . . . . . 1 . 1 . 2 3 . Highest Loss Streak 6 | . . . . . 3 4 1 1 6 3 2 To Critical Strikes . | . . . . . . . . . . . . Average Slot Usage (%) 82 | . 85 100 65 71 69 69 76 74 91 91 89 Engine 3 | . 14 14 14 14 3 . . 2 4 . . Core 4 | . . . . . . 7 9 3 2 7 7 Treads 10 | . . . . . . 1 13 . 9 21 23 Leg 2 | . 28 28 13 . . . . . . . . Wheel 4 | . . . 14 28 16 7 . 6 3 1 . Flight 4 | . . . . . . . . 20 10 5 1 Device 1 | . 6 14 7 4 5 . . . . 1 . Storage 8 | . 14 14 14 14 9 9 9 9 7 7 7 Processor 1 | . . . . . 8 7 . . . . . Hackware 19 | . . . . . . 9 25 20 27 28 26 Protection 1 | . . . . . 11 6 . 2 . . . Energy Gun 7 | . 3 10 . . . 7 3 2 19 2 . Ballistic Gun 3 | . 14 14 . . 10 9 3 . 1 1 . Ballistic Cannon 3 | . . . . . . . 3 7 . 6 14 Special Weapon 1 | . . . . . . . . . . 5 7 Special Melee Weapon 1 | . . . . . . 1 7 . . . . Naked Turns . | . . . . . . . . . . . . Heaviest Build 54 | 13 16 18 14 17 26 33 54 54 37 37 37 Greatest Support 83 | 20 20 20 20 26 26 20 48 48 60 60 83 Greatest Overweight (x) 9 | . . . 1 1 1 9 3 1 2 1 1 Average Overweight (x) . | . . . . . . 2 . . 1 . . Largest Inventory Capacity 10 | . 8 8 10 10 10 10 10 10 10 10 10 Average Capacity 9 | . 8 8 8 10 10 10 10 10 10 10 10 Most Carried 10 | . 7 8 9 7 10 10 10 10 10 10 10 Average Carried 9 | . 3 7 7 6 7 9 9 9 9 9 9 Final Capacity 10 | 8 8 8 10 10 10 10 10 10 10 10 10 Final Carried 10 | 6 7 8 7 6 10 9 10 10 10 10 9 Class Distribution -------------------- 24% | Mutant 22% | Hacker-Skirmisher 21% | Bothacker-Mutant 17% | Bothacker-Skirmisher 6% | Skirmisher 3% | Hacker-Mutant Dominant Class ---------------- Mutant | -10/Materials Mutant | -10/Mines Mutant | -10/Exiles Mutant | -9/Mines Mutant | -8/Materials Skirmisher | -8/Garrison Bothacker-Mutant | -8/Materials Mutant | -8/Garrison Hacker-Skirmisher | -7/Factory Bothacker-Skirmisher | -7/Garrison Bothacker-Skirmisher | -7/Factory Resources | -11 -10 -10 -10 -9 -8 -8 -8 -8 -7 -7 -7 ----------- Run | Yrd Mat Min Exi Min Mat Gar Mat Gar Fac Gar Fac Matter Collected 3259 | 200 113 229 326 30 238 291 289 244 636 483 180 Remotely . | . . . . . . . . . . . . Salvage Created 3086 | . 114 70 . 82 375 680 463 179 446 435 242 Parts 187 | . 9 6 . 5 17 35 22 10 39 34 10 Haulers Intercepted 2 | . . . . . 1 . . . 1 . . Recyclers Shooed 4 | . 1 2 . . . . . . 1 . . Parts Field Recycled 5 | . . . . . . . . . 5 . . Retrieved Matter 115 | . . . . . . . . . 115 . . Parts Self-Destructed . | . . . . . . . . . . . . Prevented . | . . . . . . . . . . . . Kills | -11 -10 -10 -10 -9 -8 -8 -8 -8 -7 -7 -7 ------- Run | Yrd Mat Min Exi Min Mat Gar Mat Gar Fac Gar Fac Combat Hostiles Destroyed 75 | . 2 3 . 4 6 16 9 8 7 15 5 Melee 1 | . . . . . . . . . . 1 . Guns 45 | . 1 2 . . 3 16 6 1 6 10 . Cannons 20 | . . . . . 1 . 3 7 . 4 5 AOE 9 | . 1 1 . 4 2 . . . 1 . . Classes Destroyed 16 | . 2 2 . . 2 3 3 2 2 . . Worker 4 | . . 2 . . . . . . 2 . . Builder 4 | . . . . . . . . . 3 . 1 Hauler 2 | . . . . . 1 . . . 1 . . Mechanic 1 | . . . . . . . . . 1 . . Operator 4 | . 1 . . . 1 . . . 2 . . Swarmer 21 | . . . . . . 4 . 2 5 10 . Cutter 3 | . . . . . . . . 1 . 2 . Grunt 29 | . 2 1 . 4 6 7 4 2 1 . 2 Brawler 3 | . . . . . . 1 . . . 1 1 Duelist 2 | . . . . . . . 1 1 . . . Sentry 8 | . . . . . 1 2 2 . . 1 2 Demolisher 2 | . . 2 . . . . . . . . . Specialist 1 | . . . . . . . 1 . . . . Hunter 3 | . . . . . . . . 2 . 1 . Programmer 4 | . . . . . . 2 . . 1 1 . Heavy 1 | . . . . . . . 1 . . . . Best Kill Streak 9 | . 2 3 . 4 7 9 3 2 6 6 2 Combat Bots Only 9 | . 1 2 . 4 5 9 3 2 3 6 2 Max Kills in Single Turn 3 | . 1 3 . 3 2 2 1 1 3 1 1 Gunslinging 1 | . . 1 . . . . . . 1 . . Exploded 3 | . 1 1 . 3 1 . . . 1 . . Melee 1 | . . . . . . . . . . 1 . Uniques/NPCs Destroyed . | . . . . . . . . . . . . Combat | -11 -10 -10 -10 -9 -8 -8 -8 -8 -7 -7 -7 -------- Run | Yrd Mat Min Exi Min Mat Gar Mat Gar Fac Gar Fac Hostile Shots Fired 396 | . 32 4 . 2 31 54 19 37 124 60 33 Missed 149 | . 11 . . . 18 14 6 11 51 23 15 Damage Taken 3994 | . 277 168 . 21 225 562 458 397 1055 569 262 Core 602 | . 91 10 . 10 26 63 86 112 94 62 48 Absorbed by Shields . | . . . . . . . . . . . . Regen/Repaired (Parts) 197 | . . . . . . . . . 197 . . Core Remaining (%) 51 | 100 . . . 26 . . . 28 . . . Volleys Fired 246 | . 21 7 . 2 21 39 13 26 36 44 37 Largest 3 | . 2 2 . 1 2 2 3 3 3 3 2 Hottest 210 | . 50 85 . 30 93 53 144 144 210 210 114 Shots Fired 455 | . 22 14 . 2 28 84 43 49 87 83 43 Gun 307 | . 21 9 . . 19 84 31 14 82 47 . Cannon 83 | . . . . . 5 . 12 34 . 15 17 Launcher 13 | . 1 5 . 2 4 . . 1 . . . Special 52 | . . . . . . . . . 5 21 26 Kinetic 207 | . 21 7 . . 19 45 19 36 18 25 17 Thermal 140 | . . 2 . . . 39 24 12 29 34 . Explosive 13 | . 1 5 . 2 4 . . 1 . . . Electromagnetic 43 | . . . . . 5 . . . 35 3 . Robot Hit Streak 22 | . 7 10 . 1 7 22 16 12 8 8 8 Robot Miss Streak 4 | . 1 1 . 2 3 2 2 4 4 2 2 Penetration Max 1 | . . . . . 1 1 . . . 1 . Secondary Targets 4 | . . 1 . . . . . . 3 . . Max Gunslinging Chain 1 | . . 1 . . . . . . 1 . . Autonomous 90 | . . . . . . 39 21 9 . 21 . Shots Hit Robots 291 | . 16 9 . 1 15 64 37 28 50 42 29 Core Hits 166 | . 7 27 . 12 17 23 11 11 31 18 9 Critical Kills 6 | . . . . . 2 2 1 . . 1 . Critical Parts Destroyed 10 | . 1 . . . . 9 . . . . . Critical Strikes 27 | . 1 . . . 2 12 2 2 1 3 4 Burn 1 | . . . . . . . 1 . . . . Destroy 17 | . 1 . . . 2 12 1 . . 1 . Blast 8 | . . . . . . . . 2 . 2 4 Corrupt 1 | . . . . . . . . . 1 . . Melee Attacks 13 | . . . . . . . 13 . . . . Impact . | . . . . . . . . . . . . Slashing . | . . . . . . . . . . . . Piercing . | . . . . . . . . . . . . Sneak Attacks 3 | . . . . . . . 3 . . . . Combat Hostiles . | . . . . . . . . . . . . Follow-up Attacks . | . . . . . . . . . . . . Damage Inflicted 7749 | . 220 678 . 247 764 1697 713 737 1199 1006 488 Guns 4423 | . 172 97 . . 161 1697 531 260 873 632 . Cannons 1464 | . . . . . 106 . 182 477 . 270 429 Explosions 1835 | . 48 571 . 247 497 . . . 326 102 44 Melee . | . . . . . . . . . . . . Ramming 27 | . . 10 . . . . . . . 2 15 Kinetic 2525 | . 172 66 . . 161 556 196 477 159 309 429 Thermal 3328 | . . 31 . . . 1141 517 260 742 593 44 Explosive 1465 | . 48 571 . 247 497 . . . . 102 . Electromagnetic 404 | . . . . . 106 . . . 298 . . Impact . | . . . . . . . . . . . . Slashing . | . . . . . . . . . . . . Piercing . | . . . . . . . . . . . . Highest Corruption 12 | . 5 5 5 5 . . . . 12 12 12 Average Corruption 8 | . 4 5 5 5 . . . . 7 12 12 Corruption Purged . | . . . . . . . . . . . . Corruption Blocked . | . . . . . . . . . . . . Effects 101 | . . 7 7 1 . . . . 34 33 19 Message Errors 25 | . . 1 2 . . . . . 13 7 2 Matter Fused 22 | . . 1 . 1 . . . . 5 10 5 Heat Flow Errors 12 | . . 2 2 . . . . . 4 2 2 Energy Discharges 10 | . . 2 . . . . . . 3 2 3 Parts Rejected 3 | . . . . . . . . . 1 1 1 Parts Fused 2 | . . . . . . . . . 1 1 . Data Loss (minor) 10 | . . 1 3 . . . . . . 2 4 Data Loss (major) 6 | . . . . . . . . . 3 3 . Misfires 4 | . . . . . . . . . 1 2 1 Alerts 1 | . . . . . . . . . . . 1 Misdirections 2 | . . . . . . . . . 1 1 . Weapon Failures 4 | . . . . . . . . . 2 2 . Overload Shots . | . . . . . . . . . . . . Overflow Damage 126 | . . . . . 15 . . . 80 20 11 Projectiles 42 | . . . . . 15 . . . . 16 11 Explosions 84 | . . . . . . . . . 80 4 . Melee . | . . . . . . . . . . . . Knockbacks 9 | . . . . . . . 1 4 . 1 3 Impact . | . . . . . . . . . . . . Kinetic 9 | . . . . . . . 1 4 . 1 3 Secondary . | . . . . . . . . . . . . Self-Inflicted Damage 182 | . . 16 . . 14 . . . . 87 65 Shots 4 | . . 1 . . 1 . . . . 1 1 Rammed 8 | . . . . . . . . . 1 . 7 Targets Rammed 11 | . . 1 . . . . . . 1 1 8 Kicked 1 | . . 1 . . . . . . . . . Crushed 2 | . . . . . . . . . . 1 1 Highest Temperature 482 | . 17 146 134 1 16 62 222 482 381 267 174 Average Temperature 88 | . 12 47 68 1 5 24 88 145 98 77 34 Received Heat Transfer 888 | . 174 . . 12 117 216 117 81 87 30 54 Effects 4 | . . . . . . . . 3 1 . . Energy Bleed 1 | . . . . . . . . . 1 . . Short Circuit 2 | . . . . . . . . 2 . . . Damage (minor) 1 | . . . . . . . . 1 . . . Siege Activations . | . . . . . . . . . . . . Robots Corrupted . | . . . . . . . . . . . . Combat Hostiles . | . . . . . . . . . . . . Parts Fried . | . . . . . . . . . . . . Impact Corruptions . | . . . . . . . . . . . . Robots Melted . | . . . . . . . . . . . . Combat Hostiles . | . . . . . . . . . . . . Parts Melted 11 | . . . . . . 1 2 2 . 6 . Heat Transferred 4327 | . . 74 . . . 1178 777 333 1048 867 50 Parts Sabotaged . | . . . . . . . . . . . . Parts Stolen . | . . . . . . . . . . . . Parts Stripped . | . . . . . . . . . . . . Power Chain Reactions . | . . . . . . . . . . . . Alert | -11 -10 -10 -10 -9 -8 -8 -8 -8 -7 -7 -7 ------- Run | Yrd Mat Min Exi Min Mat Gar Mat Gar Fac Gar Fac Peak Influence 1558 | . 147 261 . 163 457 1213 821 596 658 1558 909 Initial 817 | . . 57 . . 63 297 590 161 312 418 817 Average 553 | . 76 217 . 83 262 978 360 411 302 1116 768 Maximum Alert Level 4 | . . 1 . . 2 4 3 2 2 4 3 Low Security (%) 21 | . 100 27 . 100 35 . 21 12 39 . . Level 1 23 | . . 72 . . 45 9 51 17 27 . . Level 2 23 | . . . . . 18 6 17 70 33 19 27 Level 3 16 | . . . . . . 28 10 . . 30 72 Level 4 14 | . . . . . . 54 . . . 50 . Level 5 . | . . . . . . . . . . . . High Security . | . . . . . . . . . . . . Max Security . | . . . . . . . . . . . . Squads Dispatched 20 | . 1 . . 1 3 . 7 . 4 . 4 Investigation 4 | . . . . 1 . . 2 . 1 . . Extermination 2 | . . . . . . . . . 2 . . Reinforcement 8 | . 1 . . . 1 . 3 . 1 . 2 Assault 2 | . . . . . . . . . . . 2 Garrison 4 | . . . . . 2 . 2 . . . . Intercept . | . . . . . . . . . . . . Searches Triggered . | . . . . . . . . . . . . Construction Impeded 2 | . . . . . . . 1 . . . 1 Haulers Reinforced . | . . . . . . . . . . . . Active Scanning Responses . | . . . . . . . . . . . . Cargo Convoy Interrupts . | . . . . . . . . . . . . Stealth | -11 -10 -10 -10 -9 -8 -8 -8 -8 -7 -7 -7 --------- Run | Yrd Mat Min Exi Min Mat Gar Mat Gar Fac Gar Fac Distress Signals 4 | . . . . . . . 3 . 1 . . Communications Jammed . | . . . . . . . . . . . . Distress Signals . | . . . . . . . . . . . . Times Spotted 166 | . 6 4 . 3 13 20 27 14 25 38 16 Peak Tracking Total 9 | . 2 2 . 2 5 7 5 4 4 7 9 Tactical Retreats 10 | . . . . . . 2 . 2 . 4 2 Traps | -11 -10 -10 -10 -9 -8 -8 -8 -8 -7 -7 -7 ------- Run | Yrd Mat Min Exi Min Mat Gar Mat Gar Fac Gar Fac Traps Triggered 14 | . 4 . . . . 4 2 . 2 2 . Indirectly . | . . . . . . . . . . . . Trap Hack Attempts . | . . . . . . . . . . . . Triggered . | . . . . . . . . . . . . Disarmed . | . . . . . . . . . . . . Reprogrammed . | . . . . . . . . . . . . Reused . | . . . . . . . . . . . . Traps Extracted . | . . . . . . . . . . . . Installed . | . . . . . . . . . . . . Triggered . | . . . . . . . . . . . . Machines | -11 -10 -10 -10 -9 -8 -8 -8 -8 -7 -7 -7 ---------- Run | Yrd Mat Min Exi Min Mat Gar Mat Gar Fac Gar Fac Machines Disabled 32 | . . 1 . . 3 6 1 1 10 6 4 Max in Single Turn 10 | . . 1 . . 2 1 1 1 10 2 2 Garrison Access 1 | . . . . . . . . . 1 . . Garrison Relay 11 | . . . . . . 6 . 1 . 4 . Phase Generator 1 | . . . . . . . . . . 1 . Machines Repaired . | . . . . . . . . . . . . Machines Dismantled . | . . . . . . . . . . . . Machines Sabotaged . | . . . . . . . . . . . . Overloaded Fab Kills . | . . . . . . . . . . . . Hacking | -11 -10 -10 -10 -9 -8 -8 -8 -8 -7 -7 -7 --------- Run | Yrd Mat Min Exi Min Mat Gar Mat Gar Fac Gar Fac Machines Accessed 32 | . . 1 2 1 1 1 6 1 14 3 2 Terminals 18 | . . 1 . 1 . 1 4 1 6 3 1 Fabricators 2 | . . . . . . . . . 1 . 1 Repair Stations 3 | . . . . . . . . . 3 . . Recycling Units 1 | . . . . . . . . . 1 . . Scanalyzers 2 | . . . . . . . 1 . 1 . . Garrison Access 4 | . . . . . 1 . 1 . 2 . . Total Hacks 95 | . . 1 2 4 1 3 26 2 45 7 4 Successful 58 | . . 1 2 2 1 . 18 1 26 5 2 Failed 37 | . . . . 2 . 3 8 1 19 2 2 Catastrophic 6 | . . . . . . 2 1 . 2 . 1 Database Lockouts . | . . . . . . . . . . . . Manual 43 | . . 1 1 3 . 1 16 1 15 3 2 Terminals 63 | . . 1 . 4 . 3 22 2 21 7 3 Fabricators 5 | . . . . . . . . . 4 . 1 Repair Stations 8 | . . . . . . . . . 8 . . Recycling Units 2 | . . . . . . . . . 2 . . Scanalyzers 10 | . . . . . . . 3 . 7 . . Garrison Access 5 | . . . . . 1 . 1 . 3 . . Terminal Hacks 27 | . . 1 2 1 . . 12 1 5 4 1 Record 1 | . . . 1 . . . . . . . . Robot Schematic 1 | . . . . . . . . . 1 . . Prototype ID Bank 1 | . . . . . . . . . 1 . . Open Door 1 | . . . . . . . . . . 1 . Level Access Points 2 | . . . . . . . 1 . 1 . . Emergency Access Points 1 | . . . . . . . . . . 1 . Terminal Index 2 | . . . . . . . 1 . 1 . . Garrison Index 1 | . . . . . . . 1 . . . . Alert Level 3 | . . . . . . . 3 . . . . Unreport Threat 6 | . . . . . . . 4 . 1 . 1 Dispatch Records 1 | . . . . . . . 1 . . . . Zone Layout 3 | . . 1 . 1 . . 1 . . . . Garrison Registry 2 | . . . . . . . . 1 . 1 . Patrol Navigation 1 | . . . . . . . . . . 1 . Derelict Proto ID Bank 1 | . . . 1 . . . . . . . . Fabricator Hacks 2 | . . . . . . . . . 2 . . Load Schematic 1 | . . . . . . . . . 1 . . Build 1 | . . . . . . . . . 1 . . Repair Station Hacks 4 | . . . . . . . . . 4 . . Scan Component 2 | . . . . . . . . . 2 . . Repair 2 | . . . . . . . . . 2 . . Recycling Unit Hacks 2 | . . . . . . . . . 2 . . Report Inventory 1 | . . . . . . . . . 1 . . Retrieve Components 1 | . . . . . . . . . 1 . . Scanalyzer 9 | . . . . . . . 2 . 7 . . Insert Component 4 | . . . . . . . 1 . 3 . . Analyze 5 | . . . . . . . 1 . 4 . . Garrison Access Hacks 4 | . . . . . 1 . 1 . 2 . . Unlock Access 3 | . . . . . 1 . 1 . 1 . . Seal Access 1 | . . . . . . . . . 1 . . Unauthorized Hacks 10 | . . . . 1 . . 3 . 4 1 1 Terminals 10 | . . . . 1 . . 3 . 4 1 1 Assimilate 1 | . . . . . . . . . 1 . . Botnet 7 | . . . . . . . 3 . 3 . 1 Sabotage 1 | . . . . 1 . . . . . . . Override 1 | . . . . . . . . . . 1 . Fabricators . | . . . . . . . . . . . . Repair Stations . | . . . . . . . . . . . . Recycling Units . | . . . . . . . . . . . . Scanalyzers . | . . . . . . . . . . . . Garrison Access . | . . . . . . . . . . . . Data Cores Recovered 1 | . . . . . . . . . 1 . . Used . | . . . . . . . . . . . . Hacking Detections 25 | . . . . 1 1 1 5 1 12 2 2 Full Trace Events 4 | . . . . . . 1 2 . 1 . . Feedback Events . | . . . . . . . . . . . . Feedback Blocked . | . . . . . . . . . . . . Robot Schematics Acquired 1 | . . . . . . . . . 1 . . Robots Built . | . . . . . . . . . . . . Authchips . | . . . . . . . . . . . . Time 58 | . . . . . . . . . 58 . . Total Robot Build Rating . | . . . . . . . . . . . . Part Schematics Acquired 4 | . . . . . . . 1 . 3 . . Parts Built . | . . . . . . . . . . . . Authchips . | . . . . . . . . . . . . Time . | . . . . . . . . . . . . Total Part Build Rating . | . . . . . . . . . . . . Parts Repaired 2 | . . . . . . . . . 2 . . Time 57 | . . . . . . . . . 57 . . Parts Recycled . | . . . . . . . . . . . . Recycled Matter . | . . . . . . . . . . . . Retrieved Matter . | . . . . . . . . . . . . Retrieved Components 2 | . . . . . . . . . 2 . . Parts Scanalyzed 4 | . . . . . . . 1 . 3 . . Part Schematics Acquired 4 | . . . . . . . 1 . 3 . . Parts Damaged . | . . . . . . . . . . . . Bothacking | -11 -10 -10 -10 -9 -8 -8 -8 -8 -7 -7 -7 ------------ Run | Yrd Mat Min Exi Min Mat Gar Mat Gar Fac Gar Fac Used RIF Installer 3 | . . . . . . 1 . 1 . 1 . Hotswap 1 | . . . . . . . . 1 . . . Program Shield 1 | . . . . . . . . . . 1 . Robots Hacked 30 | . . . . . . . 9 . 2 8 11 Non-combat 7 | . . . . . . . 2 . . . 5 Combat 23 | . . . . . . . 7 . 2 8 6 Robot Hacks Applied 35 | . . . . . . . 9 . 2 9 15 parse_system 1 | . . . . . . . . . . . 1 randomize_corridors 1 | . . . . . . . . . . . 1 drop_inventory 3 | . . . . . . . 2 . . . 1 purge_threat 2 | . . . . . . . . . . . 2 block_reporting 1 | . . . . . . . . . . . 1 map_route 1 | . . . . . . . . . . . 1 mark_security 1 | . . . . . . . . . . . 1 overload_power 1 | . . . . . . . . . . . 1 amplify_resonance 6 | . . . . . . . 1 . . 4 1 reboot_system 9 | . . . . . . . 2 . 1 3 3 overwrite_iff 2 | . . . . . . . 1 . . 1 . formatsys_high 7 | . . . . . . . 3 . 1 1 2 Relay Couplers Released 44 | . . . . . . 23 . 4 . 17 . Machine Destruction 44 | . . . . . . 23 . 4 . 17 . Attached 15 | . . . . . . 2 3 2 . 5 3 Fabnet Peak Effective % . | . . . . . . . . . . . . Robots Rewired 3 | . . . . . . . . . . 3 . Allies Hacked . | . . . . . . . . . . . . Hacks Repelled . | . . . . . . . . . . . . Allies | -11 -10 -10 -10 -9 -8 -8 -8 -8 -7 -7 -7 -------- Run | Yrd Mat Min Exi Min Mat Gar Mat Gar Fac Gar Fac Total Allies 16 | . 1 . . 2 . . 4 . 2 5 2 Largest Group 5 | . 1 1 1 3 3 1 2 2 2 5 3 Highest-Rated Group 170 | . 59 59 59 91 98 77 97 97 122 170 151 Highest-Rated Ally 99 | . 59 59 59 59 77 77 82 82 95 98 99 Total Orders . | . . . . . . . . . . . . Ally Attacks 268 | . 13 30 . 6 21 15 68 17 29 37 32 Total Damage 7729 | . 86 339 . 97 330 664 1696 524 1265 1535 1193 Kills 70 | . 2 3 . 1 6 7 11 6 13 16 5 Allies Corrupted . | . . . . . . . . . . . . Allies Melted . | . . . . . . . . . . . . Intel | -11 -10 -10 -10 -9 -8 -8 -8 -8 -7 -7 -7 ------- Run | Yrd Mat Min Exi Min Mat Gar Mat Gar Fac Gar Fac Robot Analysis Total . | . . . . . . . . . . . . Derelict Logs Recovered . | . . . . . . . . . . . . Drone Launches . | . . . . . . . . . . . . Drone Recoveries . | . . . . . . . . . . . . Exploration | -11 -10 -10 -10 -9 -8 -8 -8 -8 -7 -7 -7 ------------- Run | Yrd Mat Min Exi Min Mat Gar Mat Gar Fac Gar Fac Turns Passed 5671 | . 186 233 326 56 228 627 984 358 1338 809 526 Spaces Moved 3324 | 1 96 115 278 41 151 266 488 298 939 406 245 Core 45 | . . . . . . 45 . . . . . Treads 1065 | . . . . . . 41 473 . 20 286 245 Legs 329 | 1 96 115 117 . . . . . . . . Wheels 1168 | . . . 161 41 151 180 15 41 459 120 . Hover . | . . . . . . . . . . . . Flight 717 | . . . . . . . . 257 460 . . Fastest Speed 32 | 120 120 120 80 90 80 95 115 32 34 115 160 Average Speed 129 | 120 120 120 98 92 91 185 176 61 113 146 166 Slowest Speed 500 | 120 120 120 120 95 95 500 320 115 197 160 240 Overloaded Moves . | . . . . . . . . . . . . Propulsion Burnouts . | . . . . . . . . . . . . Robots Hopped . | . . . . . . . . . . . . Cave-ins Triggered . | . . . . . . . . . . . . Exploration Rate (%) 30 | 2 24 44 61 12 17 43 37 33 27 55 11 Regions Visited 11 Branch Regions 3 Pre-discovered Areas 1 | . . . 1 . . . . . . . . Known Exits Taken 3 | . . . . . 1 . 1 . 1 . . Unknown Exits Taken 5 | 1 1 1 1 1 . . . . . . . Scrap Searched . | . . . . . . . . . . . . Spaces Dug 2 | . . . . . . . 2 . . . . Terrain Destroyed 220 | . 4 34 . 11 15 4 10 . 44 78 20 Melee . | . . . . . . . . . . . . Projectile 25 | . . . . . 6 3 10 . . 1 5 AOE 194 | . 4 34 . 11 9 . . . 44 77 15 Terrain Rammed . | . . . . . . . . . . . . Walls Destroyed . | . . . . . . . . . . . . Machines Disabled . | . . . . . . . . . . . . Actions | -11 -10 -10 -10 -9 -8 -8 -8 -8 -7 -7 -7 --------- Run | Yrd Mat Min Exi Min Mat Gar Mat Gar Fac Gar Fac Total 4376 | . 146 195 336 56 211 361 595 441 1136 571 328 Wait 478 | . 16 66 41 12 24 . 33 82 106 73 25 Move 3313 | . 95 114 277 40 150 264 488 297 938 405 245 Hop . | . . . . . . . . . . . . Pick Up 46 | . 4 . 3 . 2 14 5 . 4 13 1 Fast Attach 72 | . 2 2 2 1 7 3 13 9 24 7 2 Attach 38 | . . . 1 1 2 7 10 7 3 4 3 Detach 48 | . 1 1 2 . 4 3 13 9 7 2 6 Swap 22 | . 2 2 . . 1 3 . 2 6 5 1 Drop 64 | . 5 2 10 . . 12 4 9 11 11 . Fire 246 | . 21 7 . 2 21 39 13 26 36 44 37 Melee 13 | . . . . . . . 13 . . . . Ram . | . . . . . . . . . . . . Kick 1 | . . 1 . . . . . . . . . Crush 10 | . . . . . . . . . 1 1 8 Escape Stasis 16 | . . . . . . 16 . . . . . Rewire 9 | . . . . . . . 3 . . 6 . Trap . | . . . . . . . . . . . . Miscellaneous . | . . . . . . . . . . . . Route ------- -11/Scrapyard -10/Materials -10/Mines (discovered 3 exits: [*Mat x2] / *Exi) -10/Exiles -9/Mines -8/Materials -8/Garrison -8/Materials (discovered 4 exits: *Fac x3 / Gar) -8/Garrison (discovered 3 exits: *Fac x3) -7/Factory (discovered 5 exits: *Fac x4 / Gar) -7/Garrison (discovered 3 exits: *Fac x3) -7/Factory History --------- Turn | Location | Event 1 | -11/Scrapyard | Discovered new exit (range 0) 1 | -11/Scrapyard | Entered Materials 127 | -10/Materials | Discovered new exit (range 16) 187 | -10/Materials | Entered Mines 206 | -10/Mines | Core integrity fell below 50% 215 | -10/Mines | Assembled infested the area 237 | -10/Mines | Met 8R-AWN 261 | -10/Mines | Found Prototype Ballistic Gun 261 | -10/Mines | Identified 8R-AWN's Boregun 305 | -10/Mines | Build established: Mutant 307 | -10/Mines | Discovered new exit (range 5) 312 | -10/Mines | Discovered new exit (range 14) 349 | -10/Mines | Discovered new exit (range 5) 420 | -10/Mines | Entered Exiles 459 | -10/Exiles | Welcomed by 8R-AWN 480 | -10/Exiles | Met EX-HEX 516 | -10/Exiles | Met EX-BIN 530 | -10/Exiles | Aligned with FarCom system 531 | -10/Exiles | Given EX-Vault access code 559 | -10/Exiles | Opened EX-Vault 572 | -10/Exiles | Found AWS/Thermal 596 | -10/Exiles | Warned to stay clear of 0b10 Research branches 619 | -10/Exiles | Met EX-DEC 622 | -10/Exiles | Learned location of Zion (-6) 703 | -10/Exiles | Discovered new exit (range 10) 746 | -10/Exiles | Left Exiles lab with AWS/Thermal 746 | -10/Exiles | Entered Mines 749 | -9/Mines | Discovered new exit (range 9) 778 | -9/Mines | Assisted by bots powering up and referring to "LRC-V3" 802 | -9/Mines | Entered Materials 802 | -8/Materials | Accompanied by 2 allies 802 | -8/Materials | Evolved 4 slots: Propulsion x1, Utility x2, Weapon x1 875 | -8/Materials | Garrison activated, responded to threat 931 | -8/Materials | Lost 3 parts (1p1n1w) 1007 | -8/Materials | Identified exit to Garrison 1030 | -8/Materials | Entered Garrison 1066 | -8/Garrison | Garrison Relay disabled 1083 | -8/Garrison | Garrison Relay disabled 1118 | -8/Garrison | Garrison Relay disabled 1133 | -8/Garrison | Garrison Relay disabled 1171 | -8/Garrison | Garrison Relay disabled 1280 | -8/Garrison | Destroyed 9 combat bots 1289 | -8/Garrison | Discovered new exit (range 12) 1326 | -8/Garrison | Triggered checkpoint 1340 | -8/Garrison | Lost 4 parts (3n1u) 1406 | -8/Garrison | Garrison Relay disabled 1473 | -8/Garrison | Installed Relay Interface Framework 1657 | -8/Garrison | Entered Materials 1829 | -8/Materials | Identified exit to Factory 1840 | -8/Materials | Build established: Bothacker-Mutant 2513 | -8/Materials | Garrison activated, responded to threat 2638 | -8/Materials | Identified exit to Garrison 2641 | -8/Materials | Entered Garrison 2641 | -8/Garrison | Accompanied by 1 ally 2693 | -8/Garrison | Triggered checkpoint 2740 | -8/Garrison | Garrison Relay disabled 2748 | -8/Garrison | Discovered exit to Factory (range 63) 2748 | -8/Garrison | Discovered exit to Factory (range 59) 2748 | -8/Garrison | Discovered exit to Factory (range 77) 2790 | -8/Garrison | Expanded RIF knowledge: Hotswap 2845 | -8/Garrison | Triggered checkpoint 2854 | -8/Garrison | Core integrity fell below 50% 2899 | -8/Garrison | Triggered checkpoint 2989 | -8/Garrison | Build established: Mutant 2999 | -8/Garrison | Entered Factory 2999 | -7/Factory | Evolved 2 slots: Propulsion x1, Utility x1 3292 | -7/Factory | Identified exit to Factory 3301 | -7/Factory | Build established: Hacker-Skirmisher 3471 | -7/Factory | Repaired Adv. Assault Cannon 3882 | -7/Factory | System corruption reached 10% 3904 | -7/Factory | Lost 6 parts (1p3n2w) 4085 | -7/Factory | Repaired Prc. Assault Rifle 4321 | -7/Factory | Identified exit to Garrison 4337 | -7/Factory | Entered Garrison 4337 | -7/Garrison | Accompanied by 1 ally 4362 | -7/Garrison | Phase Generator disabled 4418 | -7/Garrison | Lost 3 parts (1n2w) 4435 | -7/Garrison | Garrison Relay disabled 4465 | -7/Garrison | Discovered new exit (range 43) 4465 | -7/Garrison | Discovered new exit (range 64) 4465 | -7/Garrison | Discovered new exit (range 91) 4465 | -7/Garrison | Identified exit to Factory 4570 | -7/Garrison | Lost 3 parts (1n1u1w) 4573 | -7/Garrison | Triggered checkpoint 4589 | -7/Garrison | Triggered checkpoint 4620 | -7/Garrison | Garrison Relay disabled 4889 | -7/Garrison | Triggered checkpoint 4951 | -7/Garrison | Expanded RIF knowledge: Program Shield 4956 | -7/Garrison | Lost 3 allies 4967 | -7/Garrison | Garrison Relay disabled 5037 | -7/Garrison | Garrison Relay disabled 5069 | -7/Garrison | Triggered checkpoint 5091 | -7/Garrison | Build established: Bothacker-Skirmisher 5146 | -7/Garrison | Entered Factory 5546 | -7/Factory | First assault squad dispatched 5653 | -7/Factory | Core integrity fell below 50% 5664 | -7/Factory | Core integrity fell below 20% 5672 | -7/Factory | Core destroyed Last Messages --------------- 05605_ Acquired 2 matter. 05608_ Acquired 3 matter. 05622_ 42EBNAYSN#>3 05627_ Jacked O-24 Administrator... >>purge_threat 05627_ Relay Coupler [NC] hotswapped in. Purged multiple threat records, alert level lowered. 05628_ Jacked O-24 Administrator... >>purge_threat Purged threat record, alert level lowered. 05632_ Slammed into U-05 Engineer. 05647_ System corrupted: Matter fused (-6). 05659_ Jacked Y-54 Guardian... >>reboot_system Initiating full reboot, ETC: 17. 05661_ ALERT: Hostiles spotted, dispatching reinforcements to Terminal F016. 05661_ Y-54 Guardian Imp. Light Armor Plating blasted off. 05665_ Y-54 Guardian destroyed. 05667_ System corrupted: IFF burst signal emitted. Map ----- +----------------------------------------------------+ | ?????????????????????????????# || """ | | ?????????????????????????????# """ "" | | ???????????????????????????? """T""" | | ???????????????????????????############### | | ?????????????????????????????????????????# | | ???????????????????????????????????????### ##### | | ?????????????????????????????########### #?### | | ????????????????????#????????# % #??? | | ????????????????????# ??????# #???? | | ????????????????????? ????# #???? | | ?????????????????????? """ ??# ## ### !#???? | | ????????????????????? """ # ## #?#######???? | | ????????????????????? """ + ## #????#??????? | | ????????????????????# # ##+#???????????? | | ????????????????????########## #??????????????? | | ???????????????????????# #??????????????? | | ???????????????????????# #??????????????? | | ???????????????????????# +??????????????? | | ???????????????????????# """ #??????????????? | | ???????????????????????# """ #??????????????? | | ???????????????????????# """ #??????????????? | | ???????????????????????# #??????????????? | | ???????????????????????# #??????????????? | | ?????????????????????### #### #??????????????? | | ?????????????????????# ##^ ^#??????????????? | | ?????????????????????# @ #?^ #??????????????? | | ????????????????# ! #? #??????????????? | | ????????????????+ %!! #? #??????????????? | | ????????????????# % #? ??????????????? | | ????????????????###### % #?#####?????????????? | | ?????????????????????# #???????????????????? | | ?????????????????????#;#######???????????????????? | | ????????????????????? ??????????????????????????? | | ???????????????????? ??????????????????????????? | | ???????????????????? ???????????????????????????? | | ??????????????????? ???????????????????????????? | | ??????????????????? ???????????????????????????? | | ?????????????????? ????????????????????????????? | | ??????????????????##?????????????????????????????? | | ?????????????????????????????????????????????????? | | ?????????????????????????????????????????????????? | | ?????????????????????????????????????????????????? | | ?????????????????????????????????????????????????? | | ?????????????????????????????????????????????????? | | ?????????????????????????????????????????????????? | | ?????????????????????????????????????????????????? | | ?????????????????????????????????????????????????? | | ?????????????????????????????????????????????????? | | ?????????????????????????????????????????????????? | | ?????????????????????????????????????????????????? | +----------------------------------------------------+ Best States ------------- Heat Dissipation 48 Energy Generation 15 Energy Capacity 250 Matter Stores 300 Matter Capacity 450 Sight Range 16 Robot Scan Range 14 Terrain Scan Density 210 Armor Coverage 600 Evasion (%) 63 Targeting Accuracy 8 Recoil Reduction 4 Offensive Hacking 30 Defensive Hacking 10 Relay Coupler Types 3 Relay Coupler Value 62 Item Schematics ----------------- Hacking Suite | -8/Materials | Scanalyzed Remote Datajack | -7/Factory | Scanalyzed Com. Matter Pod | -7/Factory | Scanalyzed Imp. Field Recycling Unit | -7/Factory | Scanalyzed Robot Schematics ------------------ O-24 Administrator | -7/Factory | Hacked Fabricated ------------ Nothing Alien Tech Used ----------------- None Achievements -------------- None Challenges ------------ None Player 2 | -11 -10 -10 -10 -9 -8 -8 -8 -8 -7 -7 -7 ---------- Run | Yrd Mat Min Exi Min Mat Gar Mat Gar Fac Gar Fac Slots Evolved 6 | . . . . 4 . . . 2 . . . Power 1 | . . . . . . . . 1 . . . Propulsion 1 | . . . . 1 . . . . . . . Utility 3 | . . . . 2 . . . 1 . . . Weapon 1 | . . . . 1 . . . . . . . Parts Attached 61 | . 7 1 2 . 10 6 8 1 14 5 7 Parts Lost 14 | . . 3 . . 1 . . . . . 10 Damage Taken 3559 | . . 531 . 117 88 171 256 189 408 178 1621 Core 682 | . . 51 . 21 15 32 38 24 22 . 479 Player 2/Cogmind (%) 53 | . . 83 . 67 36 33 30 17 18 . 90 Absorbed by Shields . | . . . . . . . . . . . . Damage Inflicted 6359 | . 86 339 . 97 219 664 1298 497 1034 991 1134 Player 2/Cogmind (%) 45 | . 28 33 . 28 22 28 64 40 46 49 69 Combat Hostiles Destroyed 52 | . 2 3 . 1 4 7 4 5 10 12 4 Player 2/Cogmind (%) 40 | . 50 50 . 20 40 30 30 38 58 44 44 Game ------ Seed GyrokineticStealthTerminator Manual? 0 Play Time 00:42:57 Cumulative 732.6 hours Start 2024.05.12 @ 20:06:20 End 2024.05.12 @ 20:50:13 Sessions 1 Manual Loads 0 Difficulty Rogue Special Mode AFD2020/Player2 Game No. 795 Rogue 520 Adventurer 123 Explorer 152 Win Type - Total 26 Types 20/0/4/1/0/0/0/1/0 Lore% 83 Gallery% 92 Achievement% 76 Wizard Run 0 Options --------- Layout 0 ASCII 0 Keyboard 1 Movement Numpad Keybinds 0 Fullscreen 2 Font 18/Terminus Map View 76x50 Zoom Use 1% Tactical HUD 1 Map Filters NONE Filters NONE Steam 1 RUN: e7a1c3d2-9019-43ab-b40b-d42dacd24a37